[Event "Late-Titled-Tuesday-Blitz-March-19-2024"]
[Site "Chess.com"]
[Date "2024.03.19"]
[Round "2"]
[White "NovakCabarkapa"]
[Black "valeriocarnicelli"]
[Result "1-0"]
[WhiteElo "2765"]
[BlackElo "2551"]
[TimeControl "180+1"]
[EndTime "14:20:46 PDT"]
[Termination "NovakCabarkapa won on time"]

1. d4 {[%clk 0:03:00.9]} 1... Nf6 {[%clk 0:03:00]} 2. Nc3 {[%clk 0:03:00.6]}
2... d5 {[%clk 0:02:59.8]} 3. Bf4 {[%clk 0:03:01.1]} 3... a6 {[%clk 0:02:59.5]}
4. e3 {[%clk 0:03:01.3]} 4... e6 {[%clk 0:02:59.9]} 5. g4 {[%clk 0:03:01.6]}
5... Bb4 {[%clk 0:02:58.6]} 6. g5 {[%clk 0:03:01.6]} 6... Ne4 {[%clk 0:02:58.6]}
7. Ne2 {[%clk 0:03:01.7]} 7... Nxg5 {[%clk 0:02:54.4]} 8. Bg2 {[%clk 0:03:02]}
8... O-O {[%clk 0:02:49.4]} 9. a3 {[%clk 0:03:01.8]} 9... Bd6 {[%clk 0:02:46.1]}
10. Bxd6 {[%clk 0:02:58.7]} 10... cxd6 {[%clk 0:02:43.6]} 11. f4 {[%clk
0:02:40]} 11... Ne4 {[%clk 0:02:41.9]} 12. Nxe4 {[%clk 0:02:39.3]} 12... dxe4
{[%clk 0:02:42.6]} 13. Bxe4 {[%clk 0:02:40.2]} 13... d5 {[%clk 0:02:28.7]} 14.
Bd3 {[%clk 0:02:39.9]} 14... Bd7 {[%clk 0:02:23.4]} 15. a4 {[%clk 0:02:38.8]}
15... Nc6 {[%clk 0:02:18.8]} 16. c3 {[%clk 0:02:38.6]} 16... f5 {[%clk
0:02:14.8]} 17. Ng1 {[%clk 0:02:35.8]} 17... Be8 {[%clk 0:02:12.9]} 18. Qf3
{[%clk 0:02:26.7]} 18... Kh8 {[%clk 0:02:05.8]} 19. h4 {[%clk 0:02:17.7]} 19...
Rc8 {[%clk 0:02:02.2]} 20. h5 {[%clk 0:02:18]} 20... Qb6 {[%clk 0:01:59.4]} 21.
Qg2 {[%clk 0:02:11.7]} 21... Rg8 {[%clk 0:01:22.7]} 22. Nf3 {[%clk 0:02:06.5]}
22... h6 {[%clk 0:01:20.5]} 23. b4 {[%clk 0:01:55.8]} 23... Nxb4 {[%clk
0:01:00.8]} 24. cxb4 {[%clk 0:01:53.5]} 24... Qxb4+ {[%clk 0:01:01.7]} 25. Qd2
{[%clk 0:01:46.5]} 25... Rc3 {[%clk 0:01:00.1]} 26. Ne5 {[%clk 0:01:41.6]} 26...
Kh7 {[%clk 0:00:51]} 27. Ke2 {[%clk 0:01:19.1]} 27... Qa5 {[%clk 0:00:35.9]} 28.
Rac1 {[%clk 0:01:14.2]} 28... Rxc1 {[%clk 0:00:32.3]} 29. Qxc1 {[%clk
0:00:52.8]} 29... Bxa4 {[%clk 0:00:27.4]} 30. Rg1 {[%clk 0:00:46]} 30... Bb5
{[%clk 0:00:25.2]} 31. Bxb5 {[%clk 0:00:44.9]} 31... Qxb5+ {[%clk 0:00:25.7]}
32. Kf3 {[%clk 0:00:44.1]} 32... Qe8 {[%clk 0:00:25.6]} 33. Rg6 {[%clk
0:00:42.4]} 33... Qe7 {[%clk 0:00:22.1]} 34. Qc5 {[%clk 0:00:31]} 34... Qh4
{[%clk 0:00:21.2]} 35. Rg2 {[%clk 0:00:21.5]} 35... Qxh5+ {[%clk 0:00:20.4]} 36.
Kf2 {[%clk 0:00:22.2]} 36... Qh4+ {[%clk 0:00:18.9]} 37. Kf1 {[%clk 0:00:22]}
37... Qh1+ {[%clk 0:00:18.2]} 38. Rg1 {[%clk 0:00:21.5]} 38... Qh3+ {[%clk
0:00:18]} 39. Kf2 {[%clk 0:00:20.6]} 39... Qh2+ {[%clk 0:00:18.2]} 40. Rg2
{[%clk 0:00:21]} 40... Qh4+ {[%clk 0:00:18.6]} 41. Ke2 {[%clk 0:00:21.3]} 41...
Qh5+ {[%clk 0:00:18.5]} 42. Nf3 {[%clk 0:00:21.9]} 42... Qh1 {[%clk 0:00:15.2]}
43. Rh2 {[%clk 0:00:21.5]} 43... Qb1 {[%clk 0:00:12.2]} 44. Nd2 {[%clk
0:00:15.3]} 44... Qb5+ {[%clk 0:00:10.3]} 45. Qxb5 {[%clk 0:00:15.5]} 45... axb5
{[%clk 0:00:11.2]} 46. Rh1 {[%clk 0:00:15.6]} 46... Kg6 {[%clk 0:00:10.9]} 47.
Rb1 {[%clk 0:00:15.8]} 47... Kf6 {[%clk 0:00:09.7]} 48. Rxb5 {[%clk 0:00:16.3]}
48... g5 {[%clk 0:00:09.2]} 49. fxg5+ {[%clk 0:00:16.9]} 49... hxg5 {[%clk
0:00:09.7]} 50. Rxb7 {[%clk 0:00:17.6]} 50... g4 {[%clk 0:00:09.8]} 51. Rh7
{[%clk 0:00:17.2]} 51... Kg6 {[%clk 0:00:08.6]} 52. Rh1 {[%clk 0:00:17.1]} 52...
Kg5 {[%clk 0:00:09.1]} 53. Rg1 {[%clk 0:00:17]} 53... f4 {[%clk 0:00:09.1]} 54.
exf4+ {[%clk 0:00:13.6]} 54... Kxf4 {[%clk 0:00:10]} 55. Rf1+ {[%clk 0:00:13.7]}
55... Kg5 {[%clk 0:00:09]} 56. Rg1 {[%clk 0:00:13.6]} 56... Kf4 {[%clk
0:00:09.2]} 57. Rf1+ {[%clk 0:00:14.1]} 57... Kg5 {[%clk 0:00:09.8]} 58. Ke3
{[%clk 0:00:14.8]} 58... Rh8 {[%clk 0:00:09.6]} 59. Rf7 {[%clk 0:00:12.8]} 59...
Rh3+ {[%clk 0:00:09.2]} 60. Ke2 {[%clk 0:00:13.4]} 60... Rh2+ {[%clk 0:00:09.7]}
61. Ke3 {[%clk 0:00:13.9]} 61... Rh3+ {[%clk 0:00:10.3]} 62. Ke2 {[%clk
0:00:14.4]} 62... Rh2+ {[%clk 0:00:11]} 63. Ke1 {[%clk 0:00:15]} 63... Rh1+
{[%clk 0:00:10.7]} 64. Nf1 {[%clk 0:00:14.9]} 64... Rh3 {[%clk 0:00:10.6]} 65.
Re7 {[%clk 0:00:13.9]} 65... Kf6 {[%clk 0:00:10.2]} 66. Re8 {[%clk 0:00:13.4]}
66... Rd3 {[%clk 0:00:10.2]} 67. Rf8+ {[%clk 0:00:10.7]} 67... Kg5 {[%clk
0:00:07]} 68. Rg8+ {[%clk 0:00:11]} 68... Kf5 {[%clk 0:00:05.1]} 69. Ke2 {[%clk
0:00:09.6]} 69... Rxd4 {[%clk 0:00:04.7]} 70. Ne3+ {[%clk 0:00:08.8]} 70... Ke5
{[%clk 0:00:04.4]} 71. Nxg4+ {[%clk 0:00:09.1]} 71... Kd6 {[%clk 0:00:04.7]} 72.
Ne3 {[%clk 0:00:09.6]} 72... Re4 {[%clk 0:00:05.1]} 73. Kd3 {[%clk 0:00:09.9]}
73... Ra4 {[%clk 0:00:05.1]} 74. Rg6 {[%clk 0:00:10.3]} 74... Ra3+ {[%clk
0:00:05.5]} 75. Kd2 {[%clk 0:00:10.8]} 75... Ra4 {[%clk 0:00:05.8]} 76. Nc2
{[%clk 0:00:10.1]} 76... Ra2 {[%clk 0:00:05.7]} 77. Rh6 {[%clk 0:00:10.3]} 77...
Ra4 {[%clk 0:00:05.9]} 78. Kd3 {[%clk 0:00:10.5]} 78... Rg4 {[%clk 0:00:06]} 79.
Ne3 {[%clk 0:00:10.7]} 79... Rg3 {[%clk 0:00:06.5]} 80. Kd2 {[%clk 0:00:11.3]}
80... Rg8 {[%clk 0:00:06.1]} 81. Nf5+ {[%clk 0:00:11.1]} 81... Ke5 {[%clk
0:00:06]} 82. Ne3 {[%clk 0:00:11.5]} 82... Kd6 {[%clk 0:00:05.6]} 83. Kd3 {[%clk
0:00:11.4]} 83... Ke5 {[%clk 0:00:05.4]} 84. Ke2 {[%clk 0:00:10.9]} 84... Ra8
{[%clk 0:00:05.2]} 85. Kf3 {[%clk 0:00:10.7]} 85... Ra3 {[%clk 0:00:05.5]} 86.
Rh5+ {[%clk 0:00:11.2]} 86... Kd6 {[%clk 0:00:05.2]} 87. Ke2 {[%clk 0:00:09.9]}
87... Ra2+ {[%clk 0:00:05.6]} 88. Kd3 {[%clk 0:00:10.1]} 88... Ra3+ {[%clk
0:00:06.2]} 89. Kd2 {[%clk 0:00:10.7]} 89... Ra2+ {[%clk 0:00:06.7]} 90. Nc2
{[%clk 0:00:11.3]} 90... Ra4 {[%clk 0:00:07]} 91. Rh6 {[%clk 0:00:11.3]} 91...
Ke5 {[%clk 0:00:06.6]} 92. Kc3 {[%clk 0:00:11.8]} 92... Rg4 {[%clk 0:00:06.3]}
93. Rh5+ {[%clk 0:00:11.8]} 93... Kd6 {[%clk 0:00:06.3]} 94. Nd4 {[%clk
0:00:10.8]} 94... Rg3+ {[%clk 0:00:05]} 95. Kd2 {[%clk 0:00:10.7]} 95... Rg4
{[%clk 0:00:05]} 96. Ke3 {[%clk 0:00:10]} 96... Re4+ {[%clk 0:00:04.8]} 97. Kd3
{[%clk 0:00:10.6]} 97... Rg4 {[%clk 0:00:04.9]} 98. Rh6 {[%clk 0:00:11.1]} 98...
Re4 {[%clk 0:00:04.5]} 99. Rg6 {[%clk 0:00:11]} 99... Re5 {[%clk 0:00:04]} 100.
Nf3 {[%clk 0:00:10.7]} 100... Re4 {[%clk 0:00:04.2]} 101. Ng5 {[%clk 0:00:11.2]}
101... Re1 {[%clk 0:00:04]} 102. Kd2 {[%clk 0:00:11.3]} 102... Rg1 {[%clk
0:00:01.6]} 103. Nf7+ {[%clk 0:00:11.3]} 103... Ke7 {[%clk 0:00:01.8]} 104. Rxg1
{[%clk 0:00:11.4]} 1-0

[Event "Late-Titled-Tuesday-Blitz-March-19-2024"]
[Site "Chess.com"]
[Date "2024.03.19"]
[Round "3"]
[White "DryCounty"]
[Black "Marcan2b"]
[Result "0-1"]
[WhiteElo "2656"]
[BlackElo "2921"]
[TimeControl "180+1"]
[EndTime "14:23:48 PDT"]
[Termination "Marcan2b won by resignation"]

1. e4 {[%clk 0:03:00.9]} 1... c5 {[%clk 0:02:56.4]} 2. Nf3 {[%clk 0:03:00]} 2...
Nc6 {[%clk 0:02:56.8]} 3. d4 {[%clk 0:02:59]} 3... cxd4 {[%clk 0:02:57.7]} 4.
Nxd4 {[%clk 0:02:59]} 4... Nf6 {[%clk 0:02:57.4]} 5. Nc3 {[%clk 0:02:59.1]} 5...
e5 {[%clk 0:02:58.1]} 6. Ndb5 {[%clk 0:02:59]} 6... d6 {[%clk 0:02:58]} 7. Bg5
{[%clk 0:02:59.1]} 7... a6 {[%clk 0:02:58.4]} 8. Na3 {[%clk 0:02:59.3]} 8... Be6
{[%clk 0:02:57.8]} 9. Nc4 {[%clk 0:02:58]} 9... Rb8 {[%clk 0:02:57]} 10. Bxf6
{[%clk 0:02:49.5]} 10... Qxf6 {[%clk 0:02:56.5]} 11. Nd5 {[%clk 0:02:48.5]}
11... Bxd5 {[%clk 0:02:54.9]} 12. Qxd5 {[%clk 0:02:46.8]} 12... Nb4 {[%clk
0:02:55]} 13. Qd2 {[%clk 0:02:42.4]} 13... d5 {[%clk 0:02:54]} 14. exd5 {[%clk
0:02:38.1]} 14... Rd8 {[%clk 0:02:54]} 15. d6 {[%clk 0:02:12.4]} 15... Bxd6
{[%clk 0:02:50.7]} 16. O-O-O {[%clk 0:01:51.8]} 16... Be7 {[%clk 0:02:33.1]} 17.
Qe3 {[%clk 0:01:37]} 17... Nxa2+ {[%clk 0:02:30.5]} 18. Kb1 {[%clk 0:01:36.6]}
18... Rxd1+ {[%clk 0:02:31.4]} 19. Kxa2 {[%clk 0:01:36.8]} 19... O-O {[%clk
0:02:30.5]} 0-1

[Event "Late-Titled-Tuesday-Blitz-March-19-2024"]
[Site "Chess.com"]
[Date "2024.03.19"]
[Round "3"]
[White "SoltaniciR"]
[Black "NoSpaghettiForYou"]
[Result "1-0"]
[WhiteElo "2635"]
[BlackElo "2430"]
[TimeControl "180+1"]
[EndTime "14:24:17 PDT"]
[Termination "SoltaniciR won by resignation"]

1. e4 {[%clk 0:02:56]} 1... c5 {[%clk 0:02:59.8]} 2. Nf3 {[%clk 0:02:54.3]} 2...
e6 {[%clk 0:02:58.7]} 3. Nc3 {[%clk 0:02:53.8]} 3... Nc6 {[%clk 0:02:58.3]} 4.
d4 {[%clk 0:02:54.3]} 4... cxd4 {[%clk 0:02:58.5]} 5. Nxd4 {[%clk 0:02:55]} 5...
Qc7 {[%clk 0:02:58.9]} 6. Be2 {[%clk 0:02:45.7]} 6... a6 {[%clk 0:02:58.3]} 7.
O-O {[%clk 0:02:45.8]} 7... Nf6 {[%clk 0:02:57.8]} 8. Be3 {[%clk 0:02:46.2]}
8... Be7 {[%clk 0:02:55.8]} 9. f4 {[%clk 0:02:44.9]} 9... d6 {[%clk 0:02:56.2]}
10. g4 {[%clk 0:02:44.8]} 10... b5 {[%clk 0:02:51.5]} 11. Nxc6 {[%clk
0:02:34.3]} 11... Qxc6 {[%clk 0:02:51.2]} 12. Bf3 {[%clk 0:02:35.2]} 12... Nd7
{[%clk 0:02:33.8]} 13. e5 {[%clk 0:02:32.9]} 13... d5 {[%clk 0:02:33.8]} 14.
Nxd5 {[%clk 0:02:25]} 14... exd5 {[%clk 0:02:10.4]} 15. Bxd5 {[%clk 0:02:24.7]}
15... Qg6 {[%clk 0:02:10.9]} 16. Bxa8 {[%clk 0:02:21.8]} 16... h5 {[%clk
0:02:10.6]} 17. g5 {[%clk 0:01:55.5]} 17... f6 {[%clk 0:02:00.9]} 18. f5 {[%clk
0:01:46.3]} 18... Qh7 {[%clk 0:01:58.8]} 19. g6 {[%clk 0:01:40.2]} 19... Qg8
{[%clk 0:01:58.4]} 20. e6 {[%clk 0:01:38.8]} 1-0

[Event "Late-Titled-Tuesday-Blitz-March-19-2024"]
[Site "Chess.com"]
[Date "2024.03.19"]
[Round "3"]
[White "valeriocarnicelli"]
[Black "maciek_92"]
[Result "0-1"]
[WhiteElo "2549"]
[BlackElo "2889"]
[TimeControl "180+1"]
[EndTime "14:24:27 PDT"]
[Termination "maciek_92 won by resignation"]

1. e4 {[%clk 0:03:00.9]} 1... c5 {[%clk 0:02:58.6]} 2. Nf3 {[%clk 0:03:00.9]}
2... e6 {[%clk 0:02:57.2]} 3. d4 {[%clk 0:03:01.2]} 3... cxd4 {[%clk 0:02:58.1]}
4. Nxd4 {[%clk 0:03:02]} 4... Nc6 {[%clk 0:02:58.6]} 5. Nc3 {[%clk 0:03:02.5]}
5... a6 {[%clk 0:02:59.3]} 6. Be3 {[%clk 0:02:51.7]} 6... Nf6 {[%clk 0:02:50.8]}
7. g4 {[%clk 0:02:48.6]} 7... Bb4 {[%clk 0:02:48.7]} 8. Bg2 {[%clk 0:02:42.6]}
8... d5 {[%clk 0:02:48.6]} 9. Nxc6 {[%clk 0:02:25.3]} 9... bxc6 {[%clk 0:02:47]}
10. g5 {[%clk 0:02:11.1]} 10... Nd7 {[%clk 0:02:39.2]} 11. O-O {[%clk
0:02:07.8]} 11... O-O {[%clk 0:02:38]} 12. h4 {[%clk 0:02:02.6]} 12... Bc5
{[%clk 0:02:31.5]} 13. exd5 {[%clk 0:01:52.7]} 13... cxd5 {[%clk 0:02:30.4]} 14.
Nxd5 {[%clk 0:01:48.1]} 14... exd5 {[%clk 0:02:24.6]} 15. Qxd5 {[%clk
0:01:48.3]} 15... Bxe3 {[%clk 0:02:23.4]} 16. Qxa8 {[%clk 0:01:47.9]} 16... Bb6
{[%clk 0:02:23]} 17. Rad1 {[%clk 0:01:45.7]} 17... Qc7 {[%clk 0:02:19.5]} 18. c3
{[%clk 0:01:38.2]} 18... Ne5 {[%clk 0:02:19.4]} 19. Qe4 {[%clk 0:01:35.5]} 19...
Ng4 {[%clk 0:02:18.8]} 0-1

[Event "Late-Titled-Tuesday-Blitz-March-19-2024"]
[Site "Chess.com"]
[Date "2024.03.19"]
[Round "3"]
[White "shirovin"]
[Black "schondeln"]
[Result "0-1"]
[WhiteElo "2035"]
[BlackElo "2371"]
[TimeControl "180+1"]
[EndTime "14:24:56 PDT"]
[Termination "schondeln won by resignation"]

1. e4 {[%clk 0:03:00.9]} 1... d5 {[%clk 0:02:59.7]} 2. exd5 {[%clk 0:03:00.5]}
2... Qxd5 {[%clk 0:03:00.6]} 3. Nc3 {[%clk 0:02:59.8]} 3... Qa5 {[%clk
0:03:00.5]} 4. d4 {[%clk 0:03:00.5]} 4... Nf6 {[%clk 0:03:00.7]} 5. Bd2 {[%clk
0:03:01]} 5... Bg4 {[%clk 0:02:57.5]} 6. Nf3 {[%clk 0:02:58.7]} 6... c6 {[%clk
0:02:51.3]} 7. h3 {[%clk 0:02:58]} 7... Bh5 {[%clk 0:02:51]} 8. g4 {[%clk
0:02:57.4]} 8... Bg6 {[%clk 0:02:51.1]} 9. Ne5 {[%clk 0:02:56.5]} 9... Nbd7
{[%clk 0:02:48.3]} 10. Nxg6 {[%clk 0:02:27.1]} 10... hxg6 {[%clk 0:02:47.5]} 11.
Bg2 {[%clk 0:02:27.4]} 11... e6 {[%clk 0:02:46.7]} 12. Qe2 {[%clk 0:02:24.5]}
12... Qc7 {[%clk 0:02:44.2]} 13. d5 {[%clk 0:02:22]} 13... Nxd5 {[%clk
0:02:37.1]} 14. Nxd5 {[%clk 0:02:20.4]} 14... cxd5 {[%clk 0:02:37.5]} 15. Bxd5
{[%clk 0:02:18.3]} 15... Qxc2 {[%clk 0:02:27]} 16. Rc1 {[%clk 0:02:05.4]} 16...
Qxb2 {[%clk 0:02:23.1]} 17. Bxe6 {[%clk 0:02:00.5]} 17... fxe6 {[%clk
0:02:05.6]} 18. Qxe6+ {[%clk 0:01:59]} 18... Be7 {[%clk 0:02:05.9]} 19. Rc7
{[%clk 0:01:46.5]} 19... Qe5+ {[%clk 0:01:46.8]} 20. Qxe5 {[%clk 0:01:41.1]}
20... Nxe5 {[%clk 0:01:47.7]} 21. Rxb7 {[%clk 0:01:39.7]} 21... Nf3+ {[%clk
0:01:39.6]} 22. Ke2 {[%clk 0:01:39.2]} 22... Nxd2 {[%clk 0:01:39.8]} 23. Kxd2
{[%clk 0:01:39.1]} 23... O-O-O+ {[%clk 0:01:39.8]} 24. Ke2 {[%clk 0:01:39]}
24... Kxb7 {[%clk 0:01:39.5]} 0-1

[Event "Late-Titled-Tuesday-Blitz-March-19-2024"]
[Site "Chess.com"]
[Date "2024.03.19"]
[Round "3"]
[White "PapaieDudu"]
[Black "angelgab3"]
[Result "1-0"]
[WhiteElo "2468"]
[BlackElo "2631"]
[TimeControl "180+1"]
[EndTime "14:25:01 PDT"]
[Termination "PapaieDudu won by resignation"]

1. Nf3 {[%clk 0:02:57.4]} 1... d5 {[%clk 0:02:56.9]} 2. d4 {[%clk 0:02:56.8]}
2... Nf6 {[%clk 0:02:55.9]} 3. c4 {[%clk 0:02:57]} 3... e6 {[%clk 0:02:56]} 4.
Nc3 {[%clk 0:02:57.3]} 4... dxc4 {[%clk 0:02:56.3]} 5. e3 {[%clk 0:02:55.9]}
5... a6 {[%clk 0:02:56.5]} 6. a4 {[%clk 0:02:53.8]} 6... c5 {[%clk 0:02:55.6]}
7. Bxc4 {[%clk 0:02:54.2]} 7... Nc6 {[%clk 0:02:56.2]} 8. O-O {[%clk 0:02:53]}
8... Be7 {[%clk 0:02:56.7]} 9. dxc5 {[%clk 0:02:46.8]} 9... Qa5 {[%clk
0:02:55.9]} 10. Qe2 {[%clk 0:02:46.2]} 10... O-O {[%clk 0:02:54.5]} 11. Rd1
{[%clk 0:02:39.9]} 11... Qxc5 {[%clk 0:02:51.2]} 12. e4 {[%clk 0:02:38.7]} 12...
Qh5 {[%clk 0:02:49.5]} 13. e5 {[%clk 0:02:33.3]} 13... Ng4 {[%clk 0:02:46.6]}
14. Bf4 {[%clk 0:02:33]} 14... Bc5 {[%clk 0:02:41.4]} 15. Ne4 {[%clk 0:02:27.6]}
15... Ba7 {[%clk 0:02:14]} 16. h3 {[%clk 0:02:25.5]} 16... Nh6 {[%clk
0:02:11.5]} 17. Ng3 {[%clk 0:02:04.4]} 17... Qg6 {[%clk 0:02:11.8]} 18. Nh4
{[%clk 0:01:51.6]} 18... Nd4 {[%clk 0:02:11.9]} 19. Rxd4 {[%clk 0:01:47.2]}
19... Bxd4 {[%clk 0:02:12.8]} 20. Nxg6 {[%clk 0:01:47.4]} 20... fxg6 {[%clk
0:02:13.7]} 21. Be3 {[%clk 0:01:42.3]} 21... Bxe5 {[%clk 0:02:11.6]} 22. Bxh6
{[%clk 0:01:42.8]} 22... Bxg3 {[%clk 0:02:12.5]} 23. fxg3 {[%clk 0:01:35.3]}
23... gxh6 {[%clk 0:02:13.2]} 24. Bxe6+ {[%clk 0:01:35.5]} 24... Bxe6 {[%clk
0:02:14.1]} 25. Qxe6+ {[%clk 0:01:36.4]} 25... Rf7 {[%clk 0:02:15]} 26. Rf1
{[%clk 0:01:32.1]} 26... Rf8 {[%clk 0:02:14.9]} 27. a5 {[%clk 0:01:29.8]} 27...
Kg7 {[%clk 0:02:13.2]} 28. Qe5+ {[%clk 0:01:29.8]} 28... Kg8 {[%clk 0:02:13.3]}
29. Qd5 {[%clk 0:01:28.9]} 29... Kg7 {[%clk 0:02:13.3]} 30. Qd4+ {[%clk
0:01:28.2]} 30... Kg8 {[%clk 0:02:13.3]} 31. Rxf7 {[%clk 0:01:27.6]} 31... Rxf7
{[%clk 0:02:12]} 32. b4 {[%clk 0:01:25.1]} 32... h5 {[%clk 0:02:11.6]} 33. g4
{[%clk 0:01:18.9]} 33... hxg4 {[%clk 0:02:11.4]} 34. Qxg4 {[%clk 0:01:18.6]}
34... h6 {[%clk 0:02:12.3]} 1-0

[Event "Late-Titled-Tuesday-Blitz-March-19-2024"]
[Site "Chess.com"]
[Date "2024.03.19"]
[Round "3"]
[White "AndreyNeves"]
[Black "Kumi29"]
[Result "0-1"]
[WhiteElo "2118"]
[BlackElo "2578"]
[TimeControl "180+1"]
[EndTime "14:25:20 PDT"]
[Termination "Kumi29 won by resignation"]

1. d4 {[%clk 0:03:00.9]} 1... Nf6 {[%clk 0:02:59.3]} 2. c4 {[%clk 0:02:59.8]}
2... Nc6 {[%clk 0:02:59.3]} 3. Nf3 {[%clk 0:02:58.4]} 3... e6 {[%clk 0:02:59.3]}
4. a3 {[%clk 0:02:53.3]} 4... g6 {[%clk 0:02:58.6]} 5. Nc3 {[%clk 0:02:52.9]}
5... d6 {[%clk 0:02:58.1]} 6. e4 {[%clk 0:02:52.7]} 6... Bg7 {[%clk 0:02:58.3]}
7. h3 {[%clk 0:02:52.1]} 7... O-O {[%clk 0:02:58.1]} 8. Be3 {[%clk 0:02:52]}
8... Re8 {[%clk 0:02:58.5]} 9. Qd2 {[%clk 0:02:50.5]} 9... e5 {[%clk 0:02:56.7]}
10. dxe5 {[%clk 0:02:41.6]} 10... Nxe5 {[%clk 0:02:55.6]} 11. Be2 {[%clk
0:02:29.4]} 11... Nxf3+ {[%clk 0:02:51.5]} 12. Bxf3 {[%clk 0:02:29.3]} 12... Be6
{[%clk 0:02:17.4]} 13. Nd5 {[%clk 0:02:28.9]} 13... Bxd5 {[%clk 0:02:12.7]} 14.
exd5 {[%clk 0:02:28.6]} 14... Ne4 {[%clk 0:02:10.9]} 15. Bxe4 {[%clk 0:02:25.5]}
15... Rxe4 {[%clk 0:02:10.2]} 16. Rc1 {[%clk 0:02:17.7]} 16... Qf6 {[%clk
0:02:07.3]} 17. O-O {[%clk 0:02:11.8]} 17... b6 {[%clk 0:02:05.4]} 18. Rc2
{[%clk 0:01:57.5]} 18... Rae8 {[%clk 0:02:04.7]} 19. b4 {[%clk 0:01:53.2]} 19...
Qh4 {[%clk 0:02:02.2]} 20. Rfc1 {[%clk 0:01:49.3]} 20... f5 {[%clk 0:01:56.3]}
21. Bg5 {[%clk 0:01:37.4]} 21... Qh5 {[%clk 0:01:46.9]} 22. c5 {[%clk
0:01:23.1]} 22... Re2 {[%clk 0:01:44.9]} 23. Qf4 {[%clk 0:01:20.4]} 23... Rxc2
{[%clk 0:01:35.2]} 24. Rxc2 {[%clk 0:01:18.6]} 24... Re1+ {[%clk 0:01:35.2]} 25.
Kh2 {[%clk 0:01:16.7]} 25... Be5 {[%clk 0:01:36.1]} 0-1

[Event "Late-Titled-Tuesday-Blitz-March-19-2024"]
[Site "Chess.com"]
[Date "2024.03.19"]
[Round "3"]
[White "balack95"]
[Black "Gentlejimmy7"]
[Result "0-1"]
[WhiteElo "2461"]
[BlackElo "2652"]
[TimeControl "180+1"]
[EndTime "14:25:26 PDT"]
[Termination "Gentlejimmy7 won by checkmate"]

1. d4 {[%clk 0:03:00.9]} 1... f5 {[%clk 0:02:59.1]} 2. c4 {[%clk 0:02:57.5]}
2... Nf6 {[%clk 0:02:58.7]} 3. Nc3 {[%clk 0:02:57.7]} 3... g6 {[%clk 0:02:56.9]}
4. e4 {[%clk 0:02:53.7]} 4... fxe4 {[%clk 0:02:55]} 5. Bg5 {[%clk 0:02:54.4]}
5... Bg7 {[%clk 0:02:55.3]} 6. Bxf6 {[%clk 0:02:54.3]} 6... exf6 {[%clk
0:02:52.4]} 7. Nxe4 {[%clk 0:02:54.8]} 7... O-O {[%clk 0:02:49]} 8. Qc2 {[%clk
0:02:54.4]} 8... f5 {[%clk 0:02:28.4]} 9. Ng3 {[%clk 0:02:52.9]} 9... Bxd4
{[%clk 0:02:26.8]} 10. O-O-O {[%clk 0:02:52.2]} 10... Nc6 {[%clk 0:02:26]} 11.
Nf3 {[%clk 0:02:49.9]} 11... Bg7 {[%clk 0:02:25.2]} 12. h4 {[%clk 0:02:48.9]}
12... a5 {[%clk 0:02:12.2]} 13. h5 {[%clk 0:02:46.6]} 13... Nb4 {[%clk
0:02:12.1]} 14. Qa4 {[%clk 0:02:28.4]} 14... d6 {[%clk 0:02:06.6]} 15. hxg6
{[%clk 0:02:27.5]} 15... hxg6 {[%clk 0:02:06.1]} 16. a3 {[%clk 0:02:26.9]} 16...
Qf6 {[%clk 0:02:04.1]} 17. Rd2 {[%clk 0:02:26.5]} 17... Na2+ {[%clk 0:01:57.4]}
18. Kb1 {[%clk 0:02:16.3]} 18... Nc3+ {[%clk 0:01:57]} 19. bxc3 {[%clk
0:02:16.9]} 19... Qxc3 {[%clk 0:01:57.5]} 20. Bd3 {[%clk 0:02:05.6]} 20... Ra6
{[%clk 0:01:26.6]} 21. Ka2 {[%clk 0:02:01]} 21... Rb6 {[%clk 0:01:23.1]} 22. Qc2
{[%clk 0:01:51.6]} 22... Qf6 {[%clk 0:01:21.3]} 23. Rb1 {[%clk 0:01:23]} 23...
a4 {[%clk 0:01:18]} 24. Rxb6 {[%clk 0:01:22.1]} 24... Qa1# {[%clk 0:01:17.5]}
0-1

[Event "Late-Titled-Tuesday-Blitz-March-19-2024"]
[Site "Chess.com"]
[Date "2024.03.19"]
[Round "3"]
[White "Boundless_Strike"]
[Black "Narek_Ghimoyan"]
[Result "0-1"]
[WhiteElo "2623"]
[BlackElo "2462"]
[TimeControl "180+1"]
[EndTime "14:25:26 PDT"]
[Termination "Narek_Ghimoyan won by resignation"]

1. d4 {[%clk 0:03:00.9]} 1... Nf6 {[%clk 0:02:58.8]} 2. Nc3 {[%clk 0:03:01.4]}
2... e6 {[%clk 0:02:59.4]} 3. e4 {[%clk 0:03:00.8]} 3... d5 {[%clk 0:02:59.6]}
4. Be3 {[%clk 0:02:57.5]} 4... dxe4 {[%clk 0:02:54.1]} 5. f3 {[%clk 0:02:57.7]}
5... exf3 {[%clk 0:02:49.3]} 6. Nxf3 {[%clk 0:02:58.6]} 6... Bb4 {[%clk
0:02:49.5]} 7. Bd3 {[%clk 0:02:58.2]} 7... b6 {[%clk 0:02:46.6]} 8. O-O {[%clk
0:02:57.8]} 8... Bb7 {[%clk 0:02:47.1]} 9. Qe1 {[%clk 0:02:58.5]} 9... Nbd7
{[%clk 0:02:46.1]} 10. Qh4 {[%clk 0:02:57.6]} 10... Qe7 {[%clk 0:02:45.6]} 11.
a3 {[%clk 0:02:49.2]} 11... Bd6 {[%clk 0:02:40.9]} 12. Nb5 {[%clk 0:02:38.4]}
12... O-O-O {[%clk 0:02:32.8]} 13. Nxa7+ {[%clk 0:02:35.8]} 13... Kb8 {[%clk
0:02:32.8]} 14. Nb5 {[%clk 0:02:36.5]} 14... Nd5 {[%clk 0:02:30.7]} 15. Bg5
{[%clk 0:02:36.1]} 15... f6 {[%clk 0:02:30.7]} 16. Bd2 {[%clk 0:02:36.3]} 16...
g5 {[%clk 0:02:31.3]} 17. Qe1 {[%clk 0:02:33]} 17... Bf4 {[%clk 0:02:30.3]} 18.
c4 {[%clk 0:02:32.2]} 18... Bxd2 {[%clk 0:02:29.5]} 19. Qxd2 {[%clk 0:02:27.3]}
19... Nf4 {[%clk 0:02:29.1]} 20. a4 {[%clk 0:02:27.6]} 20... c6 {[%clk
0:02:26.2]} 21. Nc3 {[%clk 0:02:16.6]} 21... Qb4 {[%clk 0:02:18.2]} 22. a5
{[%clk 0:02:09.1]} 22... bxa5 {[%clk 0:02:16.6]} 23. Ra4 {[%clk 0:02:08.8]}
23... Qb6 {[%clk 0:02:15.5]} 24. c5 {[%clk 0:02:08.9]} 24... Nxc5 {[%clk
0:02:15.6]} 25. dxc5 {[%clk 0:02:08]} 25... Qxc5+ {[%clk 0:02:14.4]} 26. Kh1
{[%clk 0:02:07.1]} 26... Nxd3 {[%clk 0:02:11.3]} 27. Ne4 {[%clk 0:02:04.9]}
27... Qb5 {[%clk 0:02:07.5]} 28. Rxa5 {[%clk 0:02:00.2]} 28... Qb6 {[%clk
0:01:23.8]} 29. Rfa1 {[%clk 0:01:56.7]} 29... g4 {[%clk 0:01:22.4]} 30. Nh4
{[%clk 0:01:54.8]} 30... f5 {[%clk 0:01:22.4]} 0-1